[Event "Titled Tuesday Blitz July 26 Early 2022"]
[White "Castaneda, Jhon David"]
[Black "Svane, Frederik"]
[WhiteFideId "4405048"]
[BlackFideId "12923044"]
[WhiteElo "2152"]
[BlackElo "2459"]
[Result "0-1"]
[Round "04"]
[TimeControl "180+1"]
[Date "2022.07.26"]
[WhiteClock "0:00:02"]
[BlackClock "0:00:08"]

1. d4 {[%clk 0:03:00]}  Nf6 {[%clk 0:03:00]} 2. Nf3 {[%clk 0:03:00]}  e6 {[%clk 0:03:00]} 3. c4 {[%clk 0:03:01]}  d5 {[%clk 0:03:00]} 4. Nc3 {[%clk 0:03:01]}  a6 {[%clk 0:03:00]} 5. c5 {[%clk 0:02:59]}  Nc6 {[%clk 0:02:59]} 6. Bf4 {[%clk 0:02:58]}  Nh5 {[%clk 0:02:56]} 7. Bg5 {[%clk 0:02:57]}  f6 {[%clk 0:02:48]} 8. Bd2 {[%clk 0:02:46]}  g6 {[%clk 0:02:24]} 9. e3 {[%clk 0:02:34]}  Be7 {[%clk 0:01:47]} 10. Qb3 {[%clk 0:02:20]}  f5 {[%clk 0:01:46]} 11. g3 {[%clk 0:01:59]}  Nf6 {[%clk 0:01:43]} 12. Bg2 {[%clk 0:02:00]}  Ne4 {[%clk 0:01:44]} 13. Qc2 {[%clk 0:01:48]}  O-O {[%clk 0:01:44]} 14. a3 {[%clk 0:01:46]}  Bf6 {[%clk 0:01:30]} 15. Rd1 {[%clk 0:01:43]}  e5 {[%clk 0:01:21]} 16. dxe5 {[%clk 0:01:38]}  Nxe5 {[%clk 0:01:22]} 17. Nxe5 {[%clk 0:01:36]}  Bxe5 {[%clk 0:01:22]} 18. O-O {[%clk 0:01:24]}  c6 {[%clk 0:01:20]} 19. b4 {[%clk 0:01:23]}  Nxd2 {[%clk 0:01:17]} 20. Rxd2 {[%clk 0:01:21]}  Qf6 {[%clk 0:01:18]} 21. Ne2 {[%clk 0:01:21]}  Be6 {[%clk 0:01:09]} 22. Nd4 {[%clk 0:01:16]}  Bf7 {[%clk 0:01:06]} 23. a4 {[%clk 0:01:15]}  h5 {[%clk 0:00:50]} 24. h4 {[%clk 0:01:07]}  Kh8 {[%clk 0:00:42]} 25. Qd3 {[%clk 0:00:48]}  Rg8 {[%clk 0:00:40]} 26. Nf3 {[%clk 0:00:46]}  Bc7 {[%clk 0:00:32]} 27. Rb1 {[%clk 0:00:34]}  Rge8 {[%clk 0:00:28]} 28. Ng5 {[%clk 0:00:31]}  Bg8 {[%clk 0:00:24]} 29. b5 {[%clk 0:00:22]}  axb5 {[%clk 0:00:24]} 30. axb5 {[%clk 0:00:22]}  Ra1 {[%clk 0:00:15]} 31. Rdd1 {[%clk 0:00:21]}  Rea8 {[%clk 0:00:10]} 32. bxc6 {[%clk 0:00:20]}  bxc6 {[%clk 0:00:10]} 33. Kh2 {[%clk 0:00:19]}  Rxb1 {[%clk 0:00:10]} 34. Rxb1 {[%clk 0:00:19]}  Rb8 {[%clk 0:00:04]} 35. Rxb8 {[%clk 0:00:16]}  Bxb8 {[%clk 0:00:05]} 36. Qb3 {[%clk 0:00:16]}  Qd8 {[%clk 0:00:05]} 37. Qb7 {[%clk 0:00:16]}  Qc7 {[%clk 0:00:05]} 38. Qb3 {[%clk 0:00:15]}  Kg7 {[%clk 0:00:06]} 39. Qc3+ {[%clk 0:00:15]}  Qe5 {[%clk 0:00:06]} 40. Qb4 {[%clk 0:00:15]}  Qc7 {[%clk 0:00:04]} 41. Qd4+ {[%clk 0:00:14]}  Qe5 {[%clk 0:00:04]} 42. Qb4 {[%clk 0:00:15]}  Bf7 {[%clk 0:00:03]} 43. Qb7 {[%clk 0:00:14]}  Qc7 {[%clk 0:00:03]} 44. Qb4 {[%clk 0:00:14]}  Kf8 {[%clk 0:00:02]} 45. Qd4 {[%clk 0:00:14]}  Qe5 {[%clk 0:00:02]} 46. Qb4 {[%clk 0:00:14]}  Bc7 {[%clk 0:00:02]} 47. Qb7 {[%clk 0:00:14]}  Be8 {[%clk 0:00:02]} 48. Qc8 {[%clk 0:00:14]}  Ke7 {[%clk 0:00:03]} 49. Qb7 {[%clk 0:00:13]}  Kd8 {[%clk 0:00:03]} 50. Qa8+ {[%clk 0:00:13]}  Bb8 {[%clk 0:00:03]} 51. Qb7 {[%clk 0:00:13]}  Bc7 {[%clk 0:00:04]} 52. Qa8+ {[%clk 0:00:13]}  Ke7 {[%clk 0:00:05]} 53. Qb7 {[%clk 0:00:13]}  Bd7 {[%clk 0:00:05]} 54. Qa7 {[%clk 0:00:12]}  Bd8 {[%clk 0:00:06]} 55. Nf3 {[%clk 0:00:11]}  Qc7 {[%clk 0:00:06]} 56. Qa4 {[%clk 0:00:09]}  Kf7 {[%clk 0:00:05]} 57. Qd4 {[%clk 0:00:09]}  Bf6 {[%clk 0:00:06]} 58. Qd3 {[%clk 0:00:08]}  Qa7 {[%clk 0:00:06]} 59. Qc2 {[%clk 0:00:08]}  Ke7 {[%clk 0:00:06]} 60. Nd4 {[%clk 0:00:08]}  Qa5 {[%clk 0:00:05]} 61. Qc1 {[%clk 0:00:08]}  Qb4 {[%clk 0:00:05]} 62. Nf3 {[%clk 0:00:07]}  Ke8 {[%clk 0:00:04]} 63. Qc2 {[%clk 0:00:07]}  Be7 {[%clk 0:00:05]} 64. Nd4 {[%clk 0:00:06]}  Qxc5 {[%clk 0:00:05]} 65. Qd1 {[%clk 0:00:07]}  Qd6 {[%clk 0:00:05]} 66. Nf3 {[%clk 0:00:07]}  Bf6 {[%clk 0:00:05]} 67. Qc2 {[%clk 0:00:07]}  c5 {[%clk 0:00:06]} 68. Qb3 {[%clk 0:00:07]}  c4 {[%clk 0:00:06]} 69. Qb7 {[%clk 0:00:06]}  Qc6 {[%clk 0:00:05]} 70. Qb8+ {[%clk 0:00:05]}  Ke7 {[%clk 0:00:05]} 71. Qg8 {[%clk 0:00:04]}  Be8 {[%clk 0:00:05]} 72. Qh7+ {[%clk 0:00:03]}  Bf7 {[%clk 0:00:06]} 73. Ng5 {[%clk 0:00:02]}  Bxg5 {[%clk 0:00:06]} 74. hxg5 {[%clk 0:00:03]}  c3 {[%clk 0:00:07]} 75. Qh8 {[%clk 0:00:02]}  c2 {[%clk 0:00:07]} 76. Qe5+ {[%clk 0:00:03]}  Kd7 {[%clk 0:00:07]} 77. Qe4 {[%clk 0:00:02]}  dxe4 {[%clk 0:00:08]} 0-1


[Site "https://www.chess.com"]

[Event "Titled Tuesday Blitz July 26 Early 2022"]
[White "Chigaev, Maksim"]
[Black "Sychev, Klementy"]
[WhiteFideId "4108116"]
[BlackFideId "4114060"]
[WhiteElo "2438"]
[BlackElo "2564"]
[Result "1-0"]
[Round "04"]
[TimeControl "180+1"]
[Date "2022.07.26"]
[WhiteClock "0:01:13"]
[BlackClock "0:00:55"]

1. Nf3 {[%clk 0:02:58]}  e6 {[%clk 0:02:56]} 2. g3 {[%clk 0:02:55]}  b5 {[%clk 0:02:56]} 3. Bg2 {[%clk 0:02:53]}  Bb7 {[%clk 0:02:57]} 4. O-O {[%clk 0:02:53]}  Nf6 {[%clk 0:02:57]} 5. d3 {[%clk 0:02:54]}  Be7 {[%clk 0:02:54]} 6. a4 {[%clk 0:02:48]}  b4 {[%clk 0:02:54]} 7. e4 {[%clk 0:02:48]}  d5 {[%clk 0:02:53]} 8. Nbd2 {[%clk 0:02:49]}  O-O {[%clk 0:02:52]} 9. Re1 {[%clk 0:02:49]}  c5 {[%clk 0:02:52]} 10. e5 {[%clk 0:02:40]}  Nfd7 {[%clk 0:02:51]} 11. h4 {[%clk 0:02:41]}  Nc6 {[%clk 0:02:50]} 12. Nf1 {[%clk 0:02:41]}  a5 {[%clk 0:02:41]} 13. N1h2 {[%clk 0:02:41]}  Qc8 {[%clk 0:02:26]} 14. Bg5 {[%clk 0:02:34]}  f6 {[%clk 0:02:23]} 15. exf6 {[%clk 0:02:27]}  Bxf6 {[%clk 0:02:17]} 16. Bxf6 {[%clk 0:02:22]}  Nxf6 {[%clk 0:02:15]} 17. Bh3 {[%clk 0:02:21]}  Re8 {[%clk 0:02:15]} 18. Ng5 {[%clk 0:02:17]}  Nd8 {[%clk 0:02:14]} 19. Ng4 {[%clk 0:02:12]}  Nxg4 {[%clk 0:02:13]} 20. Qxg4 {[%clk 0:02:12]}  Ra6 {[%clk 0:01:42]} 21. Qh5 {[%clk 0:02:08]}  Qc6 {[%clk 0:01:30]} 22. Qxh7+ {[%clk 0:02:04]}  Kf8 {[%clk 0:01:29]} 23. Bxe6 {[%clk 0:01:34]}  Rxe6 {[%clk 0:01:12]} 24. Qh8+ {[%clk 0:01:29]}  Ke7 {[%clk 0:01:12]} 25. Qxg7+ {[%clk 0:01:19]}  Kd6 {[%clk 0:01:02]} 26. Nxe6 {[%clk 0:01:11]}  Nxe6 {[%clk 0:00:59]} 27. Rxe6+ {[%clk 0:01:12]}  Kxe6 {[%clk 0:00:55]} 28. Re1+ {[%clk 0:01:13]} 1-0


[Site "https://www.chess.com"]

[Event "Titled Tuesday Blitz July 26 Early 2022"]
[White "Coto Mederos, Michel"]
[Black "Srihari L R"]
[WhiteFideId "3508528"]
[BlackFideId "46617116"]
[WhiteElo "2427"]
[BlackElo "2170"]
[Result "0-1"]
[Round "04"]
[TimeControl "180+1"]
[Date "2022.07.27"]
[WhiteClock "0:00:05"]
[BlackClock "0:00:05"]

1. d4 {[%clk 0:03:00]}  d6 {[%clk 0:02:59]} 2. c4 {[%clk 0:02:58]}  e5 {[%clk 0:02:59]} 3. Nf3 {[%clk 0:02:57]}  e4 {[%clk 0:02:58]} 4. Nfd2 {[%clk 0:02:54]}  f5 {[%clk 0:02:58]} 5. Nc3 {[%clk 0:02:50]}  Nf6 {[%clk 0:02:57]} 6. e3 {[%clk 0:02:45]}  c6 {[%clk 0:02:58]} 7. d5 {[%clk 0:02:35]}  Nbd7 {[%clk 0:02:43]} 8. Be2 {[%clk 0:02:19]}  Be7 {[%clk 0:02:39]} 9. O-O {[%clk 0:02:18]}  O-O {[%clk 0:02:38]} 10. f3 {[%clk 0:02:07]}  cxd5 {[%clk 0:02:28]} 11. cxd5 {[%clk 0:02:03]}  Nc5 {[%clk 0:02:21]} 12. b4 {[%clk 0:02:00]}  exf3 {[%clk 0:02:19]} 13. gxf3 {[%clk 0:01:53]}  Ncd7 {[%clk 0:02:17]} 14. Nb3 {[%clk 0:01:47]}  Kh8 {[%clk 0:02:13]} 15. Kh1 {[%clk 0:01:47]}  Ne5 {[%clk 0:02:06]} 16. Rg1 {[%clk 0:01:44]}  Qe8 {[%clk 0:02:02]} 17. Bb2 {[%clk 0:01:35]}  Qh5 {[%clk 0:01:53]} 18. Nb5 {[%clk 0:01:16]}  Qh6 {[%clk 0:01:47]} 19. Qd2 {[%clk 0:01:01]}  Bd7 {[%clk 0:01:35]} 20. Nc7 {[%clk 0:00:59]}  Rac8 {[%clk 0:01:26]} 21. Rac1 {[%clk 0:00:59]}  f4 {[%clk 0:00:58]} 22. exf4 {[%clk 0:00:51]}  Ng6 {[%clk 0:00:54]} 23. f5 {[%clk 0:00:20]}  Qxd2 {[%clk 0:00:53]} 24. Nxd2 {[%clk 0:00:21]}  Bxf5 {[%clk 0:00:53]} 25. Ne6 {[%clk 0:00:20]}  Bxe6 {[%clk 0:00:51]} 26. dxe6 {[%clk 0:00:21]}  Nf4 {[%clk 0:00:51]} 27. Bc4 {[%clk 0:00:21]}  d5 {[%clk 0:00:50]} 28. Bb3 {[%clk 0:00:21]}  Nxe6 {[%clk 0:00:40]} 29. Rce1 {[%clk 0:00:21]}  Rc6 {[%clk 0:00:33]} 30. b5 {[%clk 0:00:20]}  Rb6 {[%clk 0:00:32]} 31. a4 {[%clk 0:00:20]}  Bb4 {[%clk 0:00:31]} 32. Rd1 {[%clk 0:00:09]}  a6 {[%clk 0:00:30]} 33. bxa6 {[%clk 0:00:08]}  Bxd2 {[%clk 0:00:28]} 34. Rxd2 {[%clk 0:00:08]}  Rxb3 {[%clk 0:00:27]} 35. a7 {[%clk 0:00:09]}  Ra8 {[%clk 0:00:25]} 36. Re2 {[%clk 0:00:09]}  Nf8 {[%clk 0:00:24]} 37. Reg2 {[%clk 0:00:07]}  Ng6 {[%clk 0:00:23]} 38. Rc2 {[%clk 0:00:04]}  Kg8 {[%clk 0:00:22]} 39. Rgc1 {[%clk 0:00:03]}  Rxa7 {[%clk 0:00:21]} 40. Rc8+ {[%clk 0:00:03]}  Kf7 {[%clk 0:00:21]} 41. R1c7+ {[%clk 0:00:02]}  Ne7 {[%clk 0:00:21]} 42. Bd4 {[%clk 0:00:03]}  Rxa4 {[%clk 0:00:18]} 43. Bc5 {[%clk 0:00:03]}  Ra1+ {[%clk 0:00:17]} 44. Kg2 {[%clk 0:00:03]}  Re1 {[%clk 0:00:17]} 45. Rd8 {[%clk 0:00:01]}  Re2+ {[%clk 0:00:16]} 46. Kg3 {[%clk 0:00:02]}  Ne4+ {[%clk 0:00:14]} 47. Kf4 {[%clk 0:00:01]}  Nxc5 {[%clk 0:00:15]} 48. Rxc5 {[%clk 0:00:01]}  Rxh2 {[%clk 0:00:12]} 49. Rc7 {[%clk 0:00:02]}  Rf2 {[%clk 0:00:11]} 50. Kg3 {[%clk 0:00:02]}  Rbxf3+ {[%clk 0:00:10]} 51. Kg4 {[%clk 0:00:03]}  Rf4+ {[%clk 0:00:09]} 52. Kg3 {[%clk 0:00:03]}  R2f3+ {[%clk 0:00:10]} 53. Kg2 {[%clk 0:00:04]}  Re3 {[%clk 0:00:10]} 54. Rxd5 {[%clk 0:00:03]}  h6 {[%clk 0:00:08]} 55. Rb5 {[%clk 0:00:03]}  Rf6 {[%clk 0:00:06]} 56. Rbxb7 {[%clk 0:00:03]}  Re5 {[%clk 0:00:06]} 57. Kg3 {[%clk 0:00:03]}  Rg5+ {[%clk 0:00:06]} 58. Kh4 {[%clk 0:00:04]}  Re6 {[%clk 0:00:06]} 59. Kh3 {[%clk 0:00:05]}  Kf6 {[%clk 0:00:06]} 60. Rc1 {[%clk 0:00:04]}  Nf5 {[%clk 0:00:06]} 61. Rf1 {[%clk 0:00:04]}  Re3+ {[%clk 0:00:06]} 62. Kh2 {[%clk 0:00:03]}  Re4 {[%clk 0:00:06]} 63. Rb3 {[%clk 0:00:01]}  Rh4+ {[%clk 0:00:05]} 64. Rh3 {[%clk 0:00:02]}  Rxh3+ {[%clk 0:00:05]} 65. Kxh3 {[%clk 0:00:03]}  Kg6 {[%clk 0:00:05]} 66. Kh2 {[%clk 0:00:03]}  Rh5+ {[%clk 0:00:05]} 67. Kg1 {[%clk 0:00:03]}  Rh1+ {[%clk 0:00:04]} 68. Kxh1 {[%clk 0:00:04]}  Ng3+ {[%clk 0:00:04]} 69. Kg2 {[%clk 0:00:04]}  Nxf1 {[%clk 0:00:05]} 70. Kxf1 {[%clk 0:00:05]}  Kf5 {[%clk 0:00:05]} 0-1


[Site "https://www.chess.com"]

[Event "Titled Tuesday Blitz July 26 Early 2022"]
[White "Cruz Mendez, Jean Marco"]
[Black "Visakh N R"]
[WhiteFideId "3526402"]
[BlackFideId "25012223"]
[WhiteElo "2064"]
[BlackElo "2448"]
[Result "1-0"]
[Round "04"]
[TimeControl "180+1"]
[Date "2022.07.26"]
[WhiteClock "0:00:11"]
[BlackClock "0:02:13"]

1. e4 {[%clk 0:03:00]}  c5 {[%clk 0:02:56]} 2. Nf3 {[%clk 0:02:57]}  d6 {[%clk 0:02:56]} 3. d4 {[%clk 0:02:57]}  cxd4 {[%clk 0:02:57]} 4. Nxd4 {[%clk 0:02:58]}  Nf6 {[%clk 0:02:57]} 5. Nc3 {[%clk 0:02:58]}  e5 {[%clk 0:02:57]} 6. Ndb5 {[%clk 0:02:50]}  a6 {[%clk 0:02:56]} 7. Na3 {[%clk 0:02:50]}  b5 {[%clk 0:02:56]} 8. Nd5 {[%clk 0:02:07]}  Bb7 {[%clk 0:02:56]} 9. c4 {[%clk 0:02:03]}  Nxd5 {[%clk 0:02:48]} 10. cxd5 {[%clk 0:02:03]}  Be7 {[%clk 0:02:48]} 11. g3 {[%clk 0:01:59]}  O-O {[%clk 0:02:45]} 12. Bg2 {[%clk 0:01:52]}  Nd7 {[%clk 0:02:43]} 13. O-O {[%clk 0:01:51]}  b4 {[%clk 0:02:43]} 14. Nc2 {[%clk 0:01:50]}  a5 {[%clk 0:02:44]} 15. Re1 {[%clk 0:01:44]}  Ba6 {[%clk 0:02:44]} 16. Ne3 {[%clk 0:01:38]}  Nc5 {[%clk 0:02:44]} 17. Nf5 {[%clk 0:01:33]}  g6 {[%clk 0:02:42]} 18. Nxe7+ {[%clk 0:01:32]}  Qxe7 {[%clk 0:02:43]} 19. h4 {[%clk 0:01:27]}  Rfc8 {[%clk 0:02:42]} 20. h5 {[%clk 0:01:26]}  Nd3 {[%clk 0:02:41]} 21. Re3 {[%clk 0:01:13]}  Nxc1 {[%clk 0:02:41]} 22. Rxc1 {[%clk 0:01:14]}  Rxc1 {[%clk 0:02:42]} 23. Qxc1 {[%clk 0:01:14]}  Rc8 {[%clk 0:02:42]} 24. Qd2 {[%clk 0:01:06]}  Qc7 {[%clk 0:02:42]} 25. Re1 {[%clk 0:01:02]}  Qc2 {[%clk 0:02:42]} 26. Qg5 {[%clk 0:01:00]}  Qxb2 {[%clk 0:02:40]} 27. h6 {[%clk 0:00:45]}  Qc3 {[%clk 0:02:40]} 28. Re3 {[%clk 0:00:28]}  Qd2 {[%clk 0:02:13]} 29. Qf6 {[%clk 0:00:24]}  Qd1+ {[%clk 0:02:13]} 30. Bf1 {[%clk 0:00:14]}  Qxf1+ {[%clk 0:02:13]} 31. Kh2 {[%clk 0:00:14]}  Kf8 {[%clk 0:02:12]} 32. Rf3 {[%clk 0:00:13]}  Rc7 {[%clk 0:02:12]} 33. Qg7+ {[%clk 0:00:11]}  Ke8 {[%clk 0:02:12]} 34. Qg8+ {[%clk 0:00:11]}  Ke7 {[%clk 0:02:13]} 35. Rxf7# {[%clk 0:00:11]} 1-0


[Site "https://www.chess.com"]

[Event "Titled Tuesday Blitz July 26 Early 2022"]
[White "Fecker, Noah"]
[Black "Roman, Rodrigo"]
[WhiteFideId "1334263"]
[BlackFideId "3701220"]
[WhiteElo "2312"]
[BlackElo "2001"]
[Result "1/2-1/2"]
[Round "04"]
[TimeControl "180+1"]
[Date "2022.07.27"]
[WhiteClock "0:00:10"]
[BlackClock "0:00:02"]

1. d4 {[%clk 0:03:00]}  Nf6 {[%clk 0:02:58]} 2. Nc3 {[%clk 0:02:59]}  d5 {[%clk 0:02:57]} 3. Bf4 {[%clk 0:03:00]}  c6 {[%clk 0:02:52]} 4. Qd3 {[%clk 0:02:57]}  Qb6 {[%clk 0:02:53]} 5. O-O-O {[%clk 0:02:57]}  Nbd7 {[%clk 0:02:23]} 6. f3 {[%clk 0:02:52]}  e6 {[%clk 0:02:10]} 7. e4 {[%clk 0:02:51]}  Nh5 {[%clk 0:02:05]} 8. Be3 {[%clk 0:02:48]}  Bb4 {[%clk 0:02:01]} 9. g4 {[%clk 0:02:38]}  Nhf6 {[%clk 0:02:01]} 10. e5 {[%clk 0:02:38]}  Ng8 {[%clk 0:01:59]} 11. a3 {[%clk 0:02:36]}  Be7 {[%clk 0:01:56]} 12. Qd2 {[%clk 0:02:18]}  h5 {[%clk 0:01:55]} 13. Nge2 {[%clk 0:02:03]}  Qc7 {[%clk 0:01:48]} 14. gxh5 {[%clk 0:01:56]}  b5 {[%clk 0:01:48]} 15. Rg1 {[%clk 0:01:51]}  Bf8 {[%clk 0:01:42]} 16. f4 {[%clk 0:01:42]}  Nh6 {[%clk 0:01:38]} 17. Ng3 {[%clk 0:01:38]}  Nb6 {[%clk 0:01:38]} 18. Kb1 {[%clk 0:01:32]}  a5 {[%clk 0:01:38]} 19. f5 {[%clk 0:01:32]}  b4 {[%clk 0:01:35]} 20. Na2 {[%clk 0:01:27]}  bxa3 {[%clk 0:01:35]} 21. fxe6 {[%clk 0:01:27]}  Bxe6 {[%clk 0:01:33]} 22. b3 {[%clk 0:01:11]}  a4 {[%clk 0:01:32]} 23. b4 {[%clk 0:01:10]}  Nc4 {[%clk 0:01:26]} 24. Bxc4 {[%clk 0:01:09]}  dxc4 {[%clk 0:01:27]} 25. Ne4 {[%clk 0:01:06]}  Nf5 {[%clk 0:01:26]} 26. h6 {[%clk 0:00:58]}  gxh6 {[%clk 0:01:07]} 27. Nf6+ {[%clk 0:00:58]}  Kd8 {[%clk 0:01:07]} 28. d5 {[%clk 0:00:57]}  cxd5 {[%clk 0:01:02]} 29. Nxd5 {[%clk 0:00:56]}  Qd7 {[%clk 0:01:03]} 30. Nb6 {[%clk 0:00:49]}  Qxd2 {[%clk 0:01:00]} 31. Rxd2+ {[%clk 0:00:49]}  Kc7 {[%clk 0:00:57]} 32. Nxa8+ {[%clk 0:00:48]}  Kb7 {[%clk 0:00:56]} 33. Bf2 {[%clk 0:00:40]}  Kxa8 {[%clk 0:00:53]} 34. Rd8+ {[%clk 0:00:40]}  Kb7 {[%clk 0:00:53]} 35. Nc3 {[%clk 0:00:25]}  Bg7 {[%clk 0:00:48]} 36. Rxh8 {[%clk 0:00:23]}  Bxh8 {[%clk 0:00:49]} 37. Nxa4 {[%clk 0:00:22]}  Bxe5 {[%clk 0:00:48]} 38. Nc5+ {[%clk 0:00:23]}  Kc6 {[%clk 0:00:48]} 39. Re1 {[%clk 0:00:21]}  Bc3 {[%clk 0:00:45]} 40. Re2 {[%clk 0:00:14]}  Bd5 {[%clk 0:00:42]} 41. Be1 {[%clk 0:00:14]}  Nd4 {[%clk 0:00:28]} 42. Re8 {[%clk 0:00:14]}  a2+ {[%clk 0:00:14]} 43. Kxa2 {[%clk 0:00:13]}  Bxe1 {[%clk 0:00:14]} 44. Rxe1 {[%clk 0:00:14]}  Nxc2 {[%clk 0:00:15]} 45. Re8 {[%clk 0:00:14]}  Nxb4+ {[%clk 0:00:15]} 46. Kb2 {[%clk 0:00:14]}  Kxc5 {[%clk 0:00:15]} 47. Rh8 {[%clk 0:00:14]}  Kd4 {[%clk 0:00:11]} 48. Rxh6 {[%clk 0:00:14]}  c3+ {[%clk 0:00:12]} 49. Kb1 {[%clk 0:00:15]}  Be4+ {[%clk 0:00:06]} 50. Kc1 {[%clk 0:00:15]}  Nd3+ {[%clk 0:00:07]} 51. Kc2 {[%clk 0:00:14]}  Ne1+ {[%clk 0:00:07]} 52. Kb3 {[%clk 0:00:14]}  c2 {[%clk 0:00:06]} 53. Kb2 {[%clk 0:00:14]}  Kd3 {[%clk 0:00:05]} 54. Rd6+ {[%clk 0:00:14]}  Ke3 {[%clk 0:00:05]} 55. h4 {[%clk 0:00:14]}  Nf3 {[%clk 0:00:03]} 56. h5 {[%clk 0:00:14]}  Nd4 {[%clk 0:00:03]} 57. h6 {[%clk 0:00:13]}  Nb5 {[%clk 0:00:03]} 58. Rd8 {[%clk 0:00:12]}  Nc7 {[%clk 0:00:02]} 59. Rc8 {[%clk 0:00:12]}  Ne6 {[%clk 0:00:02]} 60. Rc4 {[%clk 0:00:12]}  Bh7 {[%clk 0:00:01]} 61. Rc6 {[%clk 0:00:09]}  Nd4 {[%clk 0:00:01]} 62. Rc7 {[%clk 0:00:09]}  Ne2 {[%clk 0:00:01]} 63. Rxc2 {[%clk 0:00:08]}  Bxc2 {[%clk 0:00:01]} 64. Kxc2 {[%clk 0:00:09]}  Nd4+ {[%clk 0:00:01]} 65. Kc3 {[%clk 0:00:09]}  Nb5+ {[%clk 0:00:01]} 66. Kb4 {[%clk 0:00:09]}  Nd6 {[%clk 0:00:01]} 67. h7 {[%clk 0:00:09]}  Ne4 {[%clk 0:00:01]} 68. h8=Q {[%clk 0:00:09]}  f5 {[%clk 0:00:02]} 69. Qh3+ {[%clk 0:00:09]}  Kf4 {[%clk 0:00:02]} 70. Kc4 {[%clk 0:00:10]}  Ke5 {[%clk 0:00:03]} 71. Qh2+ {[%clk 0:00:09]}  f4 {[%clk 0:00:03]} 72. Kd3 {[%clk 0:00:08]}  Ng3 {[%clk 0:00:03]} 73. Qh8+ {[%clk 0:00:07]}  Kf5 {[%clk 0:00:02]} 74. Kd2 {[%clk 0:00:07]}  Kg4 {[%clk 0:00:03]} 75. Ke1 {[%clk 0:00:07]}  Kf3 {[%clk 0:00:04]} 76. Qa8+ {[%clk 0:00:07]}  Ne4 {[%clk 0:00:04]} 77. Kf1 {[%clk 0:00:07]}  Ke3 {[%clk 0:00:04]} 78. Qa3+ {[%clk 0:00:08]}  Kd4 {[%clk 0:00:04]} 79. Ke2 {[%clk 0:00:08]}  Nc3+ {[%clk 0:00:03]} 80. Kf3 {[%clk 0:00:08]}  Nd5 {[%clk 0:00:01]} 81. Qb2+ {[%clk 0:00:08]}  Kc4 {[%clk 0:00:02]} 82. Qe2+ {[%clk 0:00:08]}  Kc5 {[%clk 0:00:02]} 83. Qe4 {[%clk 0:00:08]}  Kd6 {[%clk 0:00:02]} 84. Ke2 {[%clk 0:00:08]}  Kc5 {[%clk 0:00:03]} 85. Kd3 {[%clk 0:00:08]}  Nb4+ {[%clk 0:00:03]} 86. Kc3 {[%clk 0:00:08]}  Nd5+ {[%clk 0:00:04]} 87. Kd3 {[%clk 0:00:08]}  Nb4+ {[%clk 0:00:04]} 88. Ke2 {[%clk 0:00:09]}  Nd5 {[%clk 0:00:05]} 89. Kf3 {[%clk 0:00:10]}  Kd6 {[%clk 0:00:04]} 90. Qe8 {[%clk 0:00:09]}  Kc5 {[%clk 0:00:04]} 91. Ke4 {[%clk 0:00:10]}  Nf6+ {[%clk 0:00:02]} 92. Kxf4 {[%clk 0:00:10]}  Nxe8 {[%clk 0:00:02]} 1/2-1/2


[Site "https://www.chess.com"]

[Event "Titled Tuesday Blitz July 26 Early 2022"]
[White "Goltsev, Dmitry"]
[Black "Lewtak, Damian"]
[WhiteFideId "24176710"]
[BlackFideId "1141724"]
[WhiteElo "2258"]
[BlackElo "2359"]
[Result "1-0"]
[Round "04"]
[TimeControl "180+1"]
[Date "2022.07.27"]
[WhiteClock "0:01:19"]
[BlackClock "0:00:34"]

1. e4 {[%clk 0:03:00]}  c5 {[%clk 0:03:00]} 2. Nf3 {[%clk 0:03:00]}  d6 {[%clk 0:03:00]} 3. d4 {[%clk 0:03:00]}  cxd4 {[%clk 0:03:00]} 4. Nxd4 {[%clk 0:03:01]}  Nf6 {[%clk 0:03:01]} 5. Nc3 {[%clk 0:03:02]}  Nc6 {[%clk 0:03:00]} 6. Be2 {[%clk 0:03:02]}  e5 {[%clk 0:02:59]} 7. Nb3 {[%clk 0:03:02]}  Be6 {[%clk 0:02:57]} 8. O-O {[%clk 0:03:02]}  d5 {[%clk 0:02:56]} 9. exd5 {[%clk 0:02:57]}  Nxd5 {[%clk 0:02:57]} 10. Nxd5 {[%clk 0:02:57]}  Bxd5 {[%clk 0:02:56]} 11. c3 {[%clk 0:02:57]}  Be7 {[%clk 0:02:53]} 12. Be3 {[%clk 0:02:56]}  O-O {[%clk 0:02:52]} 13. Qc2 {[%clk 0:02:52]}  Be6 {[%clk 0:02:47]} 14. Rad1 {[%clk 0:02:49]}  Qc7 {[%clk 0:02:46]} 15. Nc5 {[%clk 0:02:48]}  Bxc5 {[%clk 0:02:32]} 16. Bxc5 {[%clk 0:02:49]}  Rfd8 {[%clk 0:02:32]} 17. Bf3 {[%clk 0:02:41]}  Rxd1 {[%clk 0:02:20]} 18. Rxd1 {[%clk 0:02:42]}  Rd8 {[%clk 0:02:20]} 19. h3 {[%clk 0:02:36]}  f5 {[%clk 0:02:06]} 20. Rxd8+ {[%clk 0:02:24]}  Qxd8 {[%clk 0:02:06]} 21. Qa4 {[%clk 0:02:25]}  e4 {[%clk 0:02:02]} 22. Be2 {[%clk 0:02:19]}  h6 {[%clk 0:01:37]} 23. Bxa7 {[%clk 0:02:11]}  Nxa7 {[%clk 0:01:19]} 24. Qxa7 {[%clk 0:02:12]}  Qd2 {[%clk 0:01:18]} 25. Qb6 {[%clk 0:02:00]}  Qxe2 {[%clk 0:01:10]} 26. Qxe6+ {[%clk 0:01:59]}  Kf8 {[%clk 0:00:58]} 27. Qxf5+ {[%clk 0:01:54]}  Ke7 {[%clk 0:00:58]} 28. Qe5+ {[%clk 0:01:52]}  Kf7 {[%clk 0:00:58]} 29. Qd5+ {[%clk 0:01:51]}  Kf6 {[%clk 0:00:58]} 30. Qxb7 {[%clk 0:01:43]}  Kf5 {[%clk 0:00:49]} 31. Qf7+ {[%clk 0:01:39]}  Ke5 {[%clk 0:00:45]} 32. Qxg7+ {[%clk 0:01:39]}  Kd5 {[%clk 0:00:46]} 33. Qd7+ {[%clk 0:01:35]}  Ke5 {[%clk 0:00:46]} 34. Qd4+ {[%clk 0:01:32]}  Kf5 {[%clk 0:00:46]} 35. c4 {[%clk 0:01:30]}  h5 {[%clk 0:00:39]} 36. c5 {[%clk 0:01:27]}  Qe1+ {[%clk 0:00:33]} 37. Kh2 {[%clk 0:01:27]}  Qb1 {[%clk 0:00:34]} 38. c6 {[%clk 0:01:23]}  Qc2 {[%clk 0:00:34]} 39. b4 {[%clk 0:01:19]} 1-0


[Site "https://www.chess.com"]